fUST/lending_fUST_20260107
["ID","MTS","AMOUNT","RATE_DAILY","PERIOD"]
[400707760,1767785472349,-151.0,0.00028059,7]
[400707761,1767785472358,-151.0,0.00028059,7]
[400707762,1767785472367,-151.0,0.00028059,7]
[400707763,1767785472376,-4426.0,0.00028059,7]
[400707764,1767785472385,-933.0,0.00028083,2]
[400707765,1767785472394,-500.0,0.00028083,2]
[400707766,1767785472404,-364.24644296,0.00028083,2]
[400707767,1767785472413,-685.80551207,0.0002811,2]
[400707768,1767785472423,-307.6,0.00028169,3]
[400707769,1767785472432,-34692.55458483,0.00028171,2]
[400707770,1767785472442,-227.46,0.000282,7]
[400707771,1767785472451,-2302.28,0.000282,14]
[400707772,1767785472460,-500.0,0.00028219,2]
[400707773,1767785472470,-836.74,0.00028219,2]
[400707774,1767785472479,-500.0,0.00028219,2]
[400707775,1767785472488,-178.56719036,0.00028219,2]
[400707776,1767785472498,-500.0,0.00028219,2]
[400707777,1767785472508,-500.0,0.00028219,2]
[400707778,1767785472517,-576.51854464,0.00028219,2]
[400707779,1767785472526,-500.0,0.00028219,2]
[400707780,1767785472535,-201.87565185,0.00028219,2]
[400707781,1767785472545,-246.34601962,0.00028219,2]
[400707782,1767785472553,-500.0,0.00028219,2]
[400707783,1767785472562,-500.0,0.00028219,2]
[400707784,1767785472571,-500.0,0.00028219,2]
[400707785,1767785472580,-500.0,0.00028219,2]
[400707786,1767785472591,-574.24165646,0.00028219,2]
[400707787,1767785472600,-500.0,0.00028219,2]
[400707788,1767785472610,-604.5691419,0.00028219,2]
[400707789,1767785472619,-528.5328738,0.00028219,2]
[400707790,1767785472628,-443.89076946,0.00028219,2]
[400707791,1767785472637,-500.0,0.00028219,2]
[400707792,1767785472647,-186.99690557,0.00028219,2]
[400707793,1767785472657,-345.3181151,0.00028219,2]
[400707794,1767785472666,-556.73214678,0.00028219,2]
[400707795,1767785472675,-500.0,0.00028219,2]
[400707796,1767785472684,-231.925611,0.00028219,2]
[400707797,1767785472693,-500.0,0.00028219,2]
[400707798,1767785472702,-500.0,0.00028219,2]
[400707799,1767785472711,-333.7260999,0.00028219,2]
[400707800,1767785472720,-500.0,0.00028219,2]
[400707801,1767785472729,-500.0,0.00028219,2]
[400707802,1767785472738,-500.0,0.00028219,2]
[400707803,1767785472747,-500.0,0.00028219,2]
[400707804,1767785472756,-500.0,0.00028219,2]
[400707805,1767785472765,-500.0,0.00028219,2]
[400707806,1767785472775,-500.0,0.00028219,2]
[400707807,1767785472785,-500.0,0.00028219,2]
[400707808,1767785472795,-500.0,0.00028219,2]
[400707809,1767785472804,-615.69390191,0.00028219,2]
[400707810,1767785472814,-397.60413058,0.00028219,2]
[400707811,1767785472823,-500.0,0.00028219,2]
[400707812,1767785472833,-583.04293387,0.00028219,2]
[400707813,1767785472846,-500.0,0.00028219,2]
[400707814,1767785472856,-572.81538707,0.00028219,2]
[400707815,1767785472865,-392.07978129,0.00028219,2]
[400707816,1767785472875,-500.0,0.00028219,2]
[400707817,1767785472885,-500.0,0.00028219,2]
[400707818,1767785472895,-500.0,0.00028219,2]
[400707819,1767785472905,-500.0,0.00028219,2]
[400707820,1767785472915,-548.79,0.00028219,2]
[400707821,1767785472925,-500.0,0.00028219,2]
[400707822,1767785472935,-500.0,0.00028219,2]
[400707823,1767785472944,-500.0,0.00028219,2]
[400707824,1767785472953,-557.5159063,0.00028219,2]
[400707825,1767785472963,-500.0,0.00028219,2]
[400707826,1767785472972,-276.0357,0.00028219,7]
[400707827,1767785472982,-500.0,0.00028219,2]
[400707828,1767785472991,-544.22588771,0.00028219,2]
[400707829,1767785473000,-500.0,0.00028219,2]
[400707830,1767785473010,-500.0,0.00028219,2]
[400707831,1767785473019,-571.66610557,0.00028219,2]
[400707832,1767785473028,-500.0,0.00028219,2]
[400707833,1767785473038,-500.0,0.00028219,2]
[400707834,1767785473048,-500.0,0.00028219,2]
[400707835,1767785473059,-300.0,0.00028219,7]
[400707836,1767785473068,-300.0,0.00028219,7]
[400707837,1767785473077,-500.0,0.00028219,2]
[400707838,1767785473086,-300.0,0.00028219,7]
[400707839,1767785473095,-500.0,0.00028219,2]
[400707840,1767785473105,-300.0,0.00028219,7]
[400707841,1767785473115,-576.98465831,0.00028219,2]
[400707842,1767785473125,-500.0,0.00028219,2]
[400707843,1767785473134,-500.0,0.00028219,2]
[400707844,1767785473145,-500.0,0.00028219,2]
[400707845,1767785473155,-500.0,0.00028219,2]
[400707846,1767785473165,-500.0,0.00028219,2]
[400707847,1767785473176,-500.0,0.00028219,2]
[400707848,1767785473186,-551.08967191,0.00028219,2]
[400707849,1767785473197,-590.37821897,0.00028219,2]
[400707850,1767785473207,-523.36920545,0.00028219,2]
[400707851,1767785473217,-500.0,0.00028219,2]
[400707852,1767785473226,-500.0,0.00028219,2]
[400707853,1767785473237,-500.0,0.00028219,2]
[400707854,1767785473246,-235.67110295,0.00028219,2]
[400707855,1767785473256,-500.0,0.00028219,2]
[400707856,1767785473265,-500.0,0.00028219,2]
[400707857,1767785473274,-633.04694877,0.00028219,2]
[400707858,1767785473283,-500.0,0.00028219,2]
[400707859,1767785473296,-500.0,0.00028219,2]
[400707860,1767785473307,-500.0,0.00028219,2]
[400707861,1767785473317,-500.0,0.00028219,2]
[400707862,1767785473327,-500.0,0.00028219,2]
[400707863,1767785473337,-104.63317786,0.00028219,2]
[400707864,1767785473943,-200.11830071,0.00027397,2]
[400707865,1767785473953,-500.0,0.00027397,2]
[400707866,1767785473963,-577.84841029,0.00027671,2]
[400707867,1767785473972,-507.49328804,0.00028219,2]
[400707868,1767785473981,-500.0,0.00028219,2]
[400707869,1767785473991,-585.96572099,0.00028219,2]
[400707870,1767785474000,-500.0,0.00028219,2]
[400707871,1767785474009,-500.0,0.00028219,2]
[400707872,1767785474018,-500.0,0.00028219,2]
[400707873,1767785474027,-500.0,0.00028219,2]
[400707874,1767785474037,-86.74698195,0.00028219,2]
[400707875,1767785474068,-413.25301805,0.00028219,2]
[400707876,1767785474080,-49.03456559,0.00028219,2]
[400707877,1767785474428,-183.85,0.0001644,2]
[400707878,1767785474437,-183.85,0.0001644,2]
[400707879,1767785474447,-273.47264948,0.00024,2]
[400707968,1767786415563,230.5405149,0.00024831,120]
[400708094,1767786632497,-500.0,0.00012329,2]
[400708095,1767786632508,-493.07704695,0.00012329,2]
[400708096,1767786632518,-500.0,0.00012329,2]
[400708097,1767786632528,-500.0,0.00012329,2]
[400708098,1767786632537,-500.0,0.00012329,2]
[400708099,1767786632547,-500.0,0.00012329,2]
[400708100,1767786632557,-500.0,0.00012329,2]
[400708101,1767786632567,-500.0,0.00012329,2]
[400708102,1767786632576,-596.04825726,0.00012329,2]
[400708103,1767786632586,-500.0,0.00012329,2]
[400708104,1767786632596,-500.0,0.00012329,2]
[400708105,1767786632605,-10380.16289523,0.0001233,2]
[400708107,1767786632617,-1054.42585719,0.0001233,2]
[400708109,1767786638139,-500.0,0.00012329,2]
[400708110,1767786638148,-348.78,0.00012329,2]
[400708111,1767786638194,-151.22,0.00012329,2]
[400708112,1767786638205,-500.0,0.00012329,2]
[400708113,1767786638215,-500.0,0.00012329,2]
[400708114,1767786638226,-500.0,0.00012329,2]
[400708115,1767786638235,-500.0,0.00012329,2]
[400708116,1767786638244,-500.0,0.00012329,2]
[400708117,1767786638253,-648.28857894,0.00012329,2]
[400708118,1767786638262,-500.0,0.00012329,2]
[400708119,1767786638272,-500.0,0.00012329,2]
[400708120,1767786638282,-500.0,0.00012329,2]
[400708121,1767786638293,-500.0,0.00012329,2]
[400708122,1767786638303,-500.0,0.00012329,2]
[400708123,1767786638312,-500.0,0.00012329,2]
[400708124,1767786638322,-500.0,0.00012329,2]
[400708125,1767786638332,-500.0,0.00012329,2]
[400708126,1767786638342,-500.0,0.00012329,2]
[400708127,1767786638352,-500.0,0.00012329,2]
[400708128,1767786638362,-500.0,0.00012329,2]
[400708129,1767786638372,-500.0,0.00012329,2]
[400708130,1767786638382,-500.0,0.00012329,2]
[400708131,1767786638393,-500.0,0.00012329,2]
[400708132,1767786638403,-500.0,0.00012329,2]
[400708133,1767786638412,-500.0,0.00012329,2]
[400708134,1767786638422,-500.0,0.00012329,2]
[400708135,1767786638432,-500.0,0.00012329,2]
[400708136,1767786638442,-500.0,0.00012329,2]
[400708137,1767786638452,-500.0,0.00012329,2]
[400708138,1767786638462,-500.0,0.00012329,2]
[400708139,1767786638471,-500.0,0.00012329,2]
[400708140,1767786638481,-500.0,0.00012329,2]
[400708141,1767786638491,-500.0,0.00012329,2]
[400708142,1767786638501,-500.0,0.00012329,2]
[400708143,1767786638511,-500.0,0.00012329,2]
[400708144,1767786638520,-500.0,0.00012329,2]
[400708145,1767786638531,-500.0,0.00012329,2]
[400708146,1767786638540,-500.0,0.00012329,2]
[400708147,1767786638549,-500.0,0.00012329,2]
[400708148,1767786638559,-500.0,0.00012329,2]
[400708149,1767786638569,-500.0,0.00012329,2]
[400708150,1767786638578,-500.0,0.00012329,2]
[400708151,1767786638588,-500.0,0.00012329,2]
[400708153,1767786638599,-500.0,0.00012329,2]
[400708155,1767786638609,-500.0,0.00012329,2]
[400708157,1767786638618,-500.0,0.00012329,2]
[400708159,1767786638628,-500.0,0.00012329,2]
[400708161,1767786638637,-500.0,0.00012329,2]
[400708163,1767786638646,-500.0,0.00012329,2]
[400708164,1767786638657,-500.0,0.00012329,2]
[400708166,1767786638666,-500.0,0.00012329,2]
[400708168,1767786638677,-500.0,0.00012329,2]
[400708170,1767786638687,-500.0,0.00012329,2]
[400708172,1767786638697,-500.0,0.00012329,2]
[400708174,1767786638707,-414.022139,0.00012329,2]
[400708177,1767786638718,-500.0,0.00012329,2]
[400708179,1767786638727,-500.0,0.00012329,2]
[400708181,1767786638736,-500.0,0.00012329,2]
[400708183,1767786638746,-409.92663685,0.00012329,2]
[400708185,1767786638755,-500.0,0.00012329,2]
[400708187,1767786638766,-500.0,0.00012329,2]
[400708189,1767786638775,-500.0,0.00012329,2]
[400708191,1767786638784,-500.0,0.00012329,2]
[400708193,1767786638794,-500.0,0.00012329,2]
[400708195,1767786638803,-500.0,0.00012329,2]
[400708197,1767786638813,-500.0,0.00012329,2]
[400708199,1767786638822,-500.0,0.00012329,2]
[400708201,1767786638832,-500.0,0.00012329,2]
[400708203,1767786638842,-500.0,0.00012329,2]
[400708205,1767786638851,-500.0,0.00012329,2]
[400708207,1767786638860,-500.0,0.00012329,2]
[400708209,1767786638870,-500.0,0.00012329,2]
[400708211,1767786638879,-500.0,0.00012329,2]
[400708213,1767786638888,-500.0,0.00012329,2]
[400708215,1767786638900,-500.0,0.00012329,2]
[400708217,1767786638910,-500.0,0.00012329,2]
[400708219,1767786638919,-500.0,0.00012329,2]
[400708221,1767786638929,-500.0,0.00012329,2]
[400708223,1767786638939,-500.0,0.00012329,2]
[400708225,1767786638950,-500.0,0.00012329,2]
[400708227,1767786638960,-500.0,0.00012329,2]
[400708229,1767786638971,-500.0,0.00012329,2]
[400708231,1767786638980,-500.0,0.00012329,2]
[400708233,1767786638989,-500.0,0.00012329,2]
[400708235,1767786639004,-500.0,0.00012329,2]
[400708237,1767786639014,-500.0,0.00012329,2]
[400708239,1767786639023,-500.0,0.00012329,2]
[400708241,1767786639033,-500.0,0.00012329,2]
[400708243,1767786639043,-500.0,0.00012329,2]
[400708245,1767786639052,-500.0,0.00012329,2]
[400708247,1767786639062,-500.0,0.00012329,2]
[400708249,1767786639072,-524.28213284,0.00012329,2]
[400708251,1767786639081,-500.0,0.00012329,2]
[400708253,1767786639092,-500.0,0.00012329,2]
[400708255,1767786639103,-500.0,0.00012329,2]
[400708257,1767786639113,-500.0,0.00012329,2]
[400708259,1767786639122,-500.0,0.00012329,2]
[400708261,1767786639132,-500.0,0.00012329,2]
[400708263,1767786639141,-500.0,0.00012329,2]
[400708265,1767786639150,-496.44451424,0.00012329,2]
[400708267,1767786639160,-500.0,0.00012329,2]
[400708269,1767786639170,-988565.41124758,0.0001233,2]
[400708271,1767786639183,-300.0,0.00012428,2]
[400708273,1767786639193,-596.0,0.00012428,2]
[400708275,1767786639203,-255.30996863,0.00012428,2]
[400708277,1767786639213,-50000.0,0.00012429,2]
[400708279,1767786639225,-3225.15593682,0.00012684,2]
[400708281,1767786639235,-300.0,0.00012784,2]
[400708283,1767786639244,-300.0,0.00012784,2]
[400708285,1767786639255,-300.0,0.00012784,2]
[400708287,1767786639265,-300.0,0.00012784,2]
[400708289,1767786639275,-300.0,0.00012784,2]
[400708291,1767786639284,-300.0,0.00012784,2]
[400708293,1767786639294,-300.0,0.00012784,2]
[400708295,1767786639304,-300.0,0.00012784,2]
[400708297,1767786639315,-300.0,0.00012784,2]
[400708299,1767786639325,-300.0,0.00012784,2]
[400708301,1767786639335,-300.0,0.00012784,2]
[400708303,1767786639345,-300.0,0.00012784,2]
[400708305,1767786639355,-300.0,0.00012784,2]
[400708307,1767786639365,-300.0,0.00012784,2]
[400708309,1767786639375,-300.0,0.00012784,2]
[400708311,1767786639384,-500.0,0.00013273,2]
[400708313,1767786639394,-500.0,0.00013273,2]
[400708315,1767786639404,-500.0,0.00013273,2]
[400708317,1767786639414,-500.0,0.00013273,2]
[400708319,1767786639423,-420.0,0.00013637,2]
[400708321,1767786639432,-300.0,0.00013673,2]
[400708323,1767786639443,-500.0,0.00013698,2]
[400708325,1767786639452,-500.0,0.00013698,2]
[400708327,1767786639461,-500.0,0.00013698,2]
[400708329,1767786639470,-500.0,0.00013698,2]
[400708331,1767786639480,-500.0,0.00013698,2]
[400708333,1767786639489,-500.0,0.00013698,2]
[400708335,1767786639498,-500.0,0.00013698,2]
[400708337,1767786639508,-500.0,0.00013698,2]
[400708339,1767786639517,-500.0,0.00013698,2]
[400708341,1767786639526,-500.0,0.00013698,2]
[400708343,1767786639535,-500.0,0.00013698,2]
[400708345,1767786639544,-500.0,0.00013698,2]
[400708347,1767786639553,-427.91976094,0.00013698,2]
[400708349,1767786639563,-500.0,0.00013698,2]
[400708351,1767786639572,-500.0,0.00013698,2]
[400708353,1767786639582,-500.0,0.00013698,2]
[400708355,1767786639591,-500.0,0.00013698,2]
[400708357,1767786639600,-500.0,0.00013698,2]
[400708359,1767786639610,-500.0,0.00013698,2]
[400708361,1767786639620,-500.0,0.00013698,2]
[400708363,1767786639629,-500.0,0.00013698,2]
[400708365,1767786639638,-500.0,0.00013698,2]
[400708367,1767786639647,-500.0,0.00013698,2]
[400708369,1767786639657,-500.0,0.00013698,2]
[400708371,1767786639666,-500.0,0.00013698,2]
[400708373,1767786639675,-500.0,0.00013698,2]
[400708375,1767786639684,-500.0,0.00013698,2]
[400708377,1767786639696,-500.0,0.00013698,2]
[400708379,1767786639705,-500.0,0.00013698,2]
[400708381,1767786639716,-500.0,0.00013698,2]
[400708383,1767786639725,-500.0,0.00013698,2]
[400708385,1767786639734,-362.49716895,0.00013698,2]
[400708387,1767786639744,-500.0,0.00013698,2]
[400708389,1767786639753,-500.0,0.00013698,2]
[400708391,1767786639762,-2355.567404,0.00013699,2]
[400708393,1767786639771,-444.06491981,0.00013699,2]
[400708395,1767786639780,-500.0,0.00013699,2]
[400708397,1767786639790,-152.05252624,0.00013699,2]
[400708399,1767786639799,-396.79905749,0.00013699,2]
[400708401,1767786639808,-158.43712124,0.00013699,2]
[400708403,1767786639818,-500.0,0.00013699,2]
[400708405,1767786639827,-500.0,0.00013699,2]
[400708408,1767786639838,-160.28540264,0.00013699,2]
[400708410,1767786639847,-500.0,0.00013699,2]
[400708411,1767786639856,-500.0,0.00013699,2]
[400708414,1767786639865,-1000.0,0.00013821,2]
[400708416,1767786639874,-1000.0,0.00013821,2]
[400708418,1767786639883,-1000.0,0.00013821,2]
[400708420,1767786639893,-1000.0,0.00013821,2]
[400708421,1767786639902,-10000.0,0.0001386,2]
[400708424,1767786639912,-600.0,0.00014221,2]
[400708426,1767786639922,-502.70184396,0.00014247,2]
[400708428,1767786639932,-1000.0,0.00014247,2]
[400708430,1767786639941,-1000.0,0.00014247,2]
[400708432,1767786639950,-1000.0,0.00014247,2]
[400708434,1767786639960,-1000.0,0.00014247,2]
[400708436,1767786639970,-1500.0,0.00014368,2]
[400708438,1767786639981,-1500.0,0.00014368,2]
[400708440,1767786639996,-1500.0,0.00014368,2]
[400708443,1767786640011,-301.26576298,0.00014428,2]
[400708446,1767786640022,-900.0,0.00014768,2]
[400708448,1767786640032,-1002.73058689,0.00014795,2]
[400708450,1767786640042,-636.08782837,0.00014795,2]
[400708452,1767786640052,-1500.0,0.00014795,2]
[400708454,1767786640062,-1500.0,0.00014795,2]
[400708456,1767786640072,-100000.0,0.00014882,2]
[400708458,1767786640082,-2000.0,0.00014916,2]
[400708460,1767786640093,-2000.0,0.00014916,2]
[400708462,1767786640103,-2000.0,0.00014916,2]
[400708464,1767786640113,-587.0,0.00014964,2]
[400708466,1767786640123,-800.0,0.00015068,2]
[400708468,1767786640133,-1200.0,0.00015316,2]
[400708470,1767786640143,-2000.0,0.00015342,2]
[400708472,1767786640153,-2000.0,0.00015342,2]
[400708474,1767786640163,-2500.0,0.00015464,2]
[400708476,1767786640173,-2500.0,0.00015464,2]
[400708478,1767786640187,-2500.0,0.00015464,2]
[400708480,1767786640197,-1203.39831266,0.00015864,2]
[400708482,1767786640206,-2500.0,0.0001589,2]
[400708484,1767786640216,-2500.0,0.0001589,2]
[400708486,1767786640226,-7858.0,0.00015939,2]
[400708488,1767786640236,-2774.29394276,0.00016012,2]
[400708490,1767786640246,-3000.0,0.00016012,2]
[400708492,1767786640257,-3000.0,0.00016012,2]
[400708494,1767786640267,-1600.0,0.00016164,2]
[400708496,1767786640276,-3225.1559368,0.00016337,2]
[400708498,1767786640286,-823.0,0.0001642,2]
[400708500,1767786640295,-347.22155733,0.00016428,2]
[400708502,1767786640305,-3000.0,0.00016438,2]
[400708504,1767786640315,-3000.0,0.00016438,2]
[400708506,1767786640326,-3500.0,0.0001656,2]
[400708508,1767786640335,-1627.52709265,0.0001656,2]
[400708510,1767786640345,-3500.0,0.00016986,2]
[400708512,1767786640355,-3500.0,0.00016986,2]
[400708514,1767786640365,-4000.0,0.00017108,2]
[400708516,1767786640375,-2400.0,0.0001726,2]
[400708518,1767786640384,-4000.0,0.00017534,2]
[400708520,1767786640394,-4000.0,0.00017534,2]
[400708522,1767786640403,-4500.0,0.00017656,2]
[400708524,1767786640413,-1152.0,0.00018018,2]
[400708526,1767786640423,-4500.0,0.00018082,2]
[400708528,1767786640433,-4500.0,0.00018082,2]
[400708530,1767786640442,-5000.0,0.00018204,2]
[400708532,1767786640451,-802.30074464,0.00018356,2]
[400708534,1767786640461,-393.17735169,0.00018428,2]
[400708536,1767786640471,-838.56279606,0.0001863,2]
[400708538,1767786640480,-5000.0,0.0001863,2]
[400708540,1767786640490,-5331.75246461,0.00018752,2]
[400708542,1767786640499,-7000.62,0.00019,2]
[400708544,1767786640508,-352.8926,0.00019178,3]
[400708546,1767786640517,-352.8926,0.00019178,5]
[400708548,1767786640527,-352.8926,0.00019178,2]
[400708550,1767786640536,-900.0,0.00019178,2]
[400708552,1767786640546,-5011.36258874,0.00019178,2]
[400708554,1767786640556,-231.19,0.000192,2]
[400708556,1767786640565,-2072.05,0.000192,2]
[400708558,1767786640575,-204.71,0.000192,2]
[400708560,1767786640584,-25963.54,0.000192,2]
[400708562,1767786640594,-167.76,0.000192,2]
[400708564,1767786640603,-1549.57669197,0.00019726,2]
[400708566,1767786640612,-562.0,0.00019771,2]
[400708568,1767786640622,-3225.1559368,0.00019991,2]
[400708570,1767786640632,-1972.0,0.0002,2]
[400708572,1767786640642,-181.25348447,0.0002,2]
[400708574,1767786640652,-160.0,0.00020155,2]
[400708576,1767786640661,-1041.66666667,0.00020155,2]
[400708578,1767786640671,-259.0,0.00020219,3]
[400708580,1767786640680,-456.92,0.0002038,2]
[400708582,1767786640689,-439.13314604,0.00020428,2]
[400708584,1767786640698,-307.6,0.00020483,2]
[400708587,1767786640710,-2355.567404,0.00020548,2]
[400708588,1767786640719,-500.71,0.00021,7]
[400708590,1767786640728,-301464.637223,0.00021373,2]
[400708592,1767786640738,-157.01821301,0.00021527,5]
[400708594,1767786640747,-7197.77059837,0.00021926,2]
[400708596,1767786640756,-307.6,0.00022026,2]
[400708598,1767786640766,-282.6,0.000221,2]
[400708601,1767786640775,-1646.0,0.000221,7]
[400708602,1767786640785,-157.018213,0.00022141,5]
[400708604,1767786640794,-169.0,0.00022411,7]
[400708606,1767786640803,-485.08894039,0.00022428,2]
[400708608,1767786640813,-300.0,0.00022466,2]
[400708611,1767786640822,-2072.05,0.000225,14]
[400708612,1767786640832,-204.71,0.000225,7]
[400708615,1767786640844,-450.0,0.00023014,2]
[400708617,1767786640854,-2100.0,0.00023156,2]
[400708619,1767786640864,-2100.0,0.00023248,2]
[400708621,1767786640873,-600.0,0.00023562,2]
[400708623,1767786640883,-307.6,0.00023569,2]
[400708625,1767786640893,-2100.0,0.00023576,2]
[400708627,1767786640903,-25963.54,0.000236,2]
[400708629,1767786640912,-7197.7705983,0.00023632,2]
[400708631,1767786640921,-3225.1559368,0.00023644,2]
[400708633,1767786640931,-210.20532748,0.00023952,2]
[400708635,1767786640940,-231.19,0.00024,7]
[400708637,1767786640950,-750.0,0.0002411,2]
[400708639,1767786640959,-531.04473475,0.00024428,2]
[400708641,1767786640969,-172.0,0.00024603,13]
[400708643,1767786640980,-900.0,0.00024658,2]
[400708645,1767786640990,-380.0,0.00024658,2]
[400708668,1767786641196,-2100.0,0.00024673,2]
[400708670,1767786641206,-606.84951042,0.00024707,14]
[400708672,1767786641215,-500.0,0.0002476,2]
[400708674,1767786641226,-618655.024558,0.000249,2]
[400708676,1767786641235,-204.71,0.00025,7]
[400708678,1767786641244,-2072.05,0.00025,14]
[400708680,1767786641254,-500.0,0.00025095,7]
[400708681,1767786641263,-282.6,0.000251,2]
[400708683,1767786641273,-1646.0,0.000251,7]
[400708685,1767786641282,-307.6,0.00025112,2]
[400708687,1767786641291,-2100.0,0.00025117,7]
[400708689,1767786641300,-250.0,0.00025205,2]
[400708691,1767786641309,-1148.14949882,0.00025205,2]
[400708693,1767786641318,-1181.07580657,0.00025205,2]
[400708694,1767786641327,-2100.0,0.00025267,7]
[400708695,1767786641336,-2100.0,0.00025287,7]
[400708696,1767786641346,-1041.66666667,0.0002529,7]
[400708697,1767786641355,-7197.7705983,0.00025338,2]
[400708698,1767786641364,-500.0,0.00025339,7]
[400708699,1767786641373,-2379.00179322,0.00025421,2]
[400708700,1767786641383,-25963.54,0.000255,2]
[400708701,1767786641391,-2379.00179322,0.00025503,2]
[400708702,1767786641401,-2100.0,0.00025554,7]
[400708703,1767786641409,-500.0,0.00025695,7]
[400708704,1767786641418,-2100.0,0.0002571,7]
[400708705,1767786641427,-500.0,0.00025714,7]
[400708706,1767786641436,-350.0,0.00025753,2]
[400708707,1767786641445,-231.19,0.000258,7]
[400708708,1767786641458,-2100.0,0.00025807,7]
[400708709,1767786641466,-2379.00179322,0.00025926,2]
[400708710,1767786641475,-500.0,0.00025978,7]
[400708711,1767786641484,-283.8,0.00026035,2]
[400708712,1767786641493,-2100.0,0.00026048,7]
[400708713,1767786641502,-2875.33898822,0.000261,7]
[400708714,1767786641511,-500.0,0.00026122,7]
[400708715,1767786641519,-2000.0,0.00026224,7]
[400708716,1767786641529,-2379.00179322,0.00026239,2]
[400708717,1767786641537,-500.0,0.00026254,7]
[400708718,1767786641546,-191.37491647,0.00026273,13]
[400708719,1767786641555,-450.0,0.00026301,2]
[400708720,1767786641564,-2100.0,0.00026337,7]
[400708721,1767786641573,-1974.17602471,0.00026413,2]
[400708722,1767786641581,-577.0005291,0.00026428,2]
[400708723,1767786641590,-2379.00179322,0.00026483,2]
[400708724,1767786641599,-204.71,0.000266,7]
[400708725,1767786641608,-2072.05,0.000266,14]
[400708726,1767786641617,-307.6,0.00026655,2]
[400708727,1767786641626,-500.0,0.0002669,7]
[400708728,1767786641635,-2798.81533169,0.00026704,2]
[400708729,1767786641644,-507.40385264,0.00026704,2]
[400708730,1767786641653,-2029.61541057,0.00026704,2]
[400708731,1767786641663,-4566.63467377,0.00026704,2]
[400708732,1767786641672,-3339.55307437,0.00026704,2]
[400708733,1767786641681,-2030.296672,0.0002671,2]
[400708734,1767786641690,-30000.0,0.0002671,2]
[400708736,1767786641699,-2100.0,0.00026723,7]
[400708737,1767786641708,-2379.00179322,0.00026765,2]
[400708738,1767786641718,-2105.41764886,0.00026765,2]
[400708739,1767786641727,-280.28268334,0.00026788,7]
[400708740,1767786641736,-188.0,0.00026795,22]
[400708742,1767786641745,-2183.31810187,0.0002682,2]
[400708744,1767786641755,-2100.0,0.00026831,7]
[400708746,1767786641764,-2100.0,0.00026842,7]
[400708748,1767786641774,-550.0,0.00026849,2]
[400708751,1767786641784,-2264.10087164,0.00026875,2]
[400708752,1767786641793,-2000.0,0.00026913,7]
[400708754,1767786641802,-2347.87260389,0.0002693,2]
[400708757,1767786641811,-2434.74389024,0.00026985,2]
[400708758,1767786641821,-500.0,0.00026987,2]
[400708761,1767786641831,-151.52117963,0.00026987,2]
[400708763,1767786641840,-500.0,0.00026987,2]
[400708764,1767786641849,-500.0,0.00026987,2]
[400708767,1767786641858,-206.58822789,0.00026987,2]
[400708768,1767786641867,-500.0,0.00026987,2]
[400708770,1767786641877,-500.0,0.00026987,2]
[400708772,1767786641886,-500.0,0.00026987,2]
[400708774,1767786641895,-500.0,0.00026987,2]
[400708776,1767786641904,-150.75126271,0.00026987,2]